[Event "Cappelle-la-Grande op"]
[Site "Cappelle-la-Grande FRA"]
[Date "2024.03.03"]
[Round "2.11"]
[White "Lesueur, Gabriel"]
[Black "Panjwani, Raja"]
[Result "1-0"]
[ECO "B34"]
[WhiteElo "2207"]
[BlackElo "2468"]
[PlyCount "135"]
[EventDate "2024.03.02"]
[EventType "swiss"]
[EventRounds "9"]
[EventCountry "FRA"]
[Source "ChessMix"]
[SourceDate "2024.03.10"]
[TimeControl "40/5400+30:1800+30"]

1. e4 {[%emt 0:00:07]} c5 {[%emt 0:00:29]} 2. Nf3 {[%emt 0:00:08]} Nc6 {
[%emt 0:00:07]} 3. Nc3 {[%emt 0:00:06]} g6 {[%emt 0:00:07]} 4. d4 {
[%emt 0:00:05]} cxd4 {[%emt 0:00:08]} 5. Nxd4 {[%emt 0:00:06]} Bg7 {
[%emt 0:00:11]} 6. Be3 {[%emt 0:00:07]} Nf6 {[%emt 0:00:06]} 7. Nxc6 {
[%emt 0:00:07]} bxc6 {[%emt 0:00:06]} 8. e5 {[%emt 0:00:05]} Ng8 {
[%emt 0:00:10]} 9. f4 {[%emt 0:00:05]} Nh6 {[%emt 0:03:09]} 10. h3 {
[%emt 0:00:07]} O-O {[%emt 0:12:09]} 11. g4 {[%emt 0:00:56]} f6 {[%emt 0:00:23]
} 12. exf6 {[%emt 0:00:07]} Bxf6 {[%emt 0:08:26]} 13. Qd2 {[%emt 0:00:18]} Qa5
{[%emt 0:18:34]} 14. Bc4+ {[%emt 0:21:58]} Nf7 {[%emt 0:00:21]} 15. O-O {
[%emt 0:00:32]} Qb4 {[%emt 0:16:44]} 16. Bb3 {[%emt 0:13:49]} a5 {
[%emt 0:00:09]} 17. a3 {[%emt 0:09:27]} Qb8 {[%emt 0:00:17]} 18. Bd4 {
[%emt 0:00:49]} Qd6 {[%emt 0:08:00]} 19. Rad1 {[%emt 0:01:14]} Qxd4+ {
[%emt 0:00:11]} 20. Qxd4 {[%emt 0:00:05]} Bxd4+ {[%emt 0:00:05]} 21. Rxd4 {
[%emt 0:00:05]} d5 {[%emt 0:00:15]} 22. Kh2 {[%emt 0:17:18]} e6 {[%emt 0:03:25]
} 23. Na4 {[%emt 0:07:53]} Ba6 {[%emt 0:11:47]} 24. c4 {[%emt 0:08:04]} e5 {
[%emt 0:01:28]} 25. Rdd1 {[%emt 0:11:52]} dxc4 {[%emt 0:01:28]} 26. Ba2 {
[%emt 0:00:33]} Rab8 {[%emt 0:00:21]} 27. Rf2 {[%emt 0:02:41]} Ng5 {
[%emt 0:03:17]} 28. Nc5 {[%emt 0:00:25]} Rxf4 {[%emt 0:00:42]} 29. Rc2 {
[%emt 0:01:54]} Bb5 {[%emt 0:01:31]} 30. a4 {[%emt 0:01:45]} Rbf8 {
[%emt 0:00:06]} 31. axb5 {[%emt 0:00:41]} cxb5 {[%emt 0:00:04]} 32. Bb1 {
[%emt 0:01:52]} Rf2+ {[%emt 0:00:26]} 33. Rxf2 {[%emt 0:00:03]} Rxf2+ {
[%emt 0:00:06]} 34. Kg3 {[%emt 0:00:07]} Rxb2 {[%emt 0:00:54]} 35. h4 {
[%emt 0:00:00]} Nf7 {[%emt 0:00:14]} 36. Be4 {[%emt 0:00:33]} c3 {
[%emt 0:01:21]} 37. Rf1 {[%emt 0:02:20]} Nd8 {[%emt 0:03:00]} 38. Nd7 {
[%emt 0:00:29]} Kg7 {[%emt 0:01:03]} 39. Nxe5 {[%emt 0:00:35]} b4 {
[%emt 0:00:45]} 40. Nc4 {[%emt 0:00:30]} Re2 {[%emt 0:05:01]} 41. Bd3 {
[%emt 0:07:33]} Re7 {[%emt 0:00:30]} 42. Nxa5 {[%emt 0:00:56]} Re5 {
[%emt 0:03:53]} 43. Nb3 {[%emt 0:03:06]} Ne6 {[%emt 0:11:19]} 44. Kf3 {
[%emt 0:02:16]} h6 {[%emt 0:06:19]} 45. Ra1 {[%emt 0:01:54]} g5 {[%emt 0:01:17]
} 46. h5 {[%emt 0:00:50]} Nf4 {[%emt 0:00:30]} 47. Be4 {[%emt 0:01:43]} Re7 {
[%emt 0:09:02]} 48. Nd4 {[%emt 0:04:16]} Rc7 {[%emt 0:00:28]} 49. Bc2 {
[%emt 0:03:07]} Rd7 {[%emt 0:00:42]} 50. Nf5+ {[%emt 0:01:48]} Kf6 {
[%emt 0:00:02]} 51. Ra6+ {[%emt 0:04:12]} Ke5 {[%emt 0:00:08]} 52. Ra5+ {
[%emt 0:00:04]} Rd5 {[%emt 0:02:25]} 53. Rxd5+ {[%emt 0:00:28]} Kxd5 {
[%emt 0:00:01]} 54. Bb3+ {[%emt 0:00:01]} Ke5 {[%emt 0:00:22]} 55. Nxh6 {
[%emt 0:03:12]} Kd4 {[%emt 0:00:50]} 56. Nf5+ {[%emt 0:00:31]} Kd3 {
[%emt 0:00:12]} 57. Ne3 {[%emt 0:00:36]} Kd2 {[%emt 0:00:51]} 58. h6 {
[%emt 0:00:46]} Ng6 {[%emt 0:01:45]} 59. h7 {[%emt 0:00:20]} Nh8 {
[%emt 0:00:44]} 60. Ke4 {[%emt 0:00:34]} Ke2 {[%emt 0:00:01]} 61. Kf5 {
[%emt 0:01:16]} Kxe3 {[%emt 0:00:15]} 62. Kf6 {[%emt 0:00:01]} Kd2 {
[%emt 0:00:12]} 63. Kg7 {[%emt 0:00:05]} c2 {[%emt 0:01:15]} 64. Bxc2 {
[%emt 0:00:16]} Kxc2 {[%emt 0:00:03]} 65. Kxh8 {[%emt 0:00:05]} b3 {
[%emt 0:00:02]} 66. Kg7 {[%emt 0:00:08]} b2 {[%emt 0:00:03]} 67. h8=Q {
[%emt 0:00:08]} b1=Q {[%emt 0:00:04]} 68. Qh7+ {[%emt 0:00:06]} 1-0

[Event "Cappelle-la-Grande op"]
[Site "Cappelle-la-Grande FRA"]
[Date "2024.03.07"]
[Round "8.8"]
[White "Nanjo, Ryosuke"]
[Black "Panjwani, Raja"]
[Result "1-0"]
[ECO "C87"]
[WhiteElo "2346"]
[BlackElo "2468"]
[PlyCount "129"]
[EventDate "2024.03.02"]
[EventType "swiss"]
[EventRounds "9"]
[EventCountry "FRA"]
[Source "ChessMix"]
[SourceDate "2024.03.10"]
[TimeControl "40/5400+30:1800+30"]

1. e4 {[%emt 0:00:04]} e5 {[%emt 0:00:09]} 2. Nf3 {[%emt 0:00:04]} Nc6 {
[%emt 0:00:07]} 3. Bb5 {[%emt 0:00:05]} a6 {[%emt 0:00:10]} 4. Ba4 {
[%emt 0:00:04]} Nf6 {[%emt 0:00:09]} 5. O-O {[%emt 0:00:08]} Be7 {
[%emt 0:00:04]} 6. d3 {[%emt 0:00:26]} d6 {[%emt 0:00:28]} 7. c3 {
[%emt 0:00:25]} Bg4 {[%emt 0:01:16]} 8. Re1 {[%emt 0:01:53]} Nd7 {
[%emt 0:00:10]} 9. Be3 {[%emt 0:05:42]} h6 {[%emt 0:00:15]} 10. Nbd2 {
[%emt 0:01:54]} Bg5 {[%emt 0:00:37]} 11. Nf1 {[%emt 0:04:06]} Qf6 {
[%emt 0:13:59]} 12. Ng3 {[%emt 0:03:58]} Bxf3 {[%emt 0:09:04]} 13. Qxf3 {
[%emt 0:00:12]} Qxf3 {[%emt 0:00:09]} 14. gxf3 {[%emt 0:00:03]} g6 {
[%emt 0:12:32]} 15. Ne2 {[%emt 0:10:25]} O-O-O {[%emt 0:11:53]} 16. d4 {
[%emt 0:08:37]} Bxe3 {[%emt 0:00:58]} 17. fxe3 {[%emt 0:00:02]} Nb6 {
[%emt 0:00:26]} 18. Bxc6 {[%emt 0:06:46]} bxc6 {[%emt 0:00:05]} 19. Kf2 {
[%emt 0:01:51]} Kd7 {[%emt 0:02:10]} 20. Rad1 {[%emt 0:01:32]} Ke6 {
[%emt 0:01:44]} 21. Nc1 {[%emt 0:02:20]} f6 {[%emt 0:03:01]} 22. Nd3 {
[%emt 0:01:33]} a5 {[%emt 0:00:10]} 23. b3 {[%emt 0:04:21]} Nd7 {[%emt 0:10:19]
} 24. c4 {[%emt 0:05:14]} Ke7 {[%emt 0:01:02]} 25. c5 {[%emt 0:08:43]} dxc5 {
[%emt 0:03:30]} 26. dxe5 {[%emt 0:01:42]} Nxe5 {[%emt 0:17:34]} 27. Nxc5 {
[%emt 0:01:50]} Rd6 {[%emt 0:00:08]} 28. Rd4 {[%emt 0:06:14]} Rb8 {
[%emt 0:01:09]} 29. Ke2 {[%emt 0:00:53]} Rb5 {[%emt 0:01:13]} 30. Rc1 {
[%emt 0:01:59]} g5 {[%emt 0:02:23]} 31. Na4 {[%emt 0:09:28]} g4 {[%emt 0:01:29]
} 32. f4 {[%emt 0:07:48]} Nd7 {[%emt 0:01:12]} 33. Rg1 {[%emt 0:02:32]} Rh5 {
[%emt 0:00:48]} 34. Rxg4 {[%emt 0:00:11]} Rxh2+ {[%emt 0:00:10]} 35. Kd3 {
[%emt 0:00:33]} Kf7 {[%emt 0:00:13]} 36. Nc3 {[%emt 0:02:47]} h5 {
[%emt 0:01:40]} 37. Rg1 {[%emt 0:00:18]} h4 {[%emt 0:00:14]} 38. a3 {
[%emt 0:01:30]} Rh3 {[%emt 0:02:40]} 39. b4 {[%emt 0:00:35]} axb4 {
[%emt 0:00:29]} 40. axb4 {[%emt 0:00:02]} Rxd4+ {[%emt 0:01:17]} 41. Kxd4 {
[%emt 0:30:50]} Rg3 {[%emt 0:31:04]} 42. Rh1 {[%emt 0:00:00]} h3 {
[%emt 0:00:00]} 43. Kd3 {[%emt 0:00:00]} Nb8 {[%emt 0:00:00]} 44. Ne2 {
[%emt 0:00:00]} Rg8 {[%emt 0:00:00]} 45. Rxh3 {[%emt 0:00:00]} Na6 {
[%emt 0:00:00]} 46. Nd4 {[%emt 0:00:00]} c5 {[%emt 0:00:00]} 47. b5 {
[%emt 0:00:00]} Nb4+ {[%emt 0:00:00]} 48. Kc4 {[%emt 0:00:00]} cxd4 {
[%emt 0:00:00]} 49. Kxb4 {[%emt 0:00:00]} Rd8 {[%emt 0:00:00]} 50. Kc4 {
[%emt 0:00:00]} d3 {[%emt 0:00:00]} 51. Rh1 {[%emt 0:00:00]} d2 {[%emt 0:00:00]
} 52. Rd1 {[%emt 0:00:00]} Ke6 {[%emt 0:00:00]} 53. Kc3 {[%emt 0:00:21]} Rb8 {
[%emt 0:00:00]} 54. Rxd2 {[%emt 0:02:18]} Rxb5 {[%emt 0:00:00]} 55. Kc4 {
[%emt 0:00:18]} Rb1 {[%emt 0:00:00]} 56. Rh2 {[%emt 0:02:43]} Re1 {
[%emt 0:01:56]} 57. Kd3 {[%emt 0:00:50]} c5 {[%emt 0:00:42]} 58. Rh6 {
[%emt 0:00:30]} Ke7 {[%emt 0:00:19]} 59. Rh7+ {[%emt 0:02:02]} Ke6 {
[%emt 0:00:23]} 60. f5+ {[%emt 0:00:27]} Kd6 {[%emt 0:00:04]} 61. Rf7 {
[%emt 0:00:05]} c4+ {[%emt 0:02:03]} 62. Kxc4 {[%emt 0:00:21]} Rc1+ {
[%emt 0:00:08]} 63. Kd3 {[%emt 0:00:07]} Rc6 {[%emt 0:00:15]} 64. Rxf6+ {
[%emt 0:00:23]} Ke5 {[%emt 0:00:03]} 65. Re6+ {[%emt 0:00:18]} 1-0

[Event "Charlotte Holiday GM"]
[Site "Charlotte USA"]
[Date "2021.12.19"]
[Round "1.4"]
[White "Panjwani, Raja"]
[Black "Gauri, Shankar"]
[Result "0-1"]
[ECO "D37"]
[WhiteElo "2431"]
[BlackElo "2325"]
[PlyCount "100"]
[EventDate "2021.12.19"]
[EventType "tourn"]
[EventRounds "9"]
[EventCountry "USA"]
[EventCategory "7"]
[Source "ChessMix"]
[SourceDate "2022.01.01"]
[TimeControl "5400+30"]

1. d4 {[%emt 0:00:03]} Nf6 {[%emt 0:04:04]} 2. c4 {[%emt 0:00:10]} e6 {
[%emt 0:00:22]} 3. Nc3 {[%emt 0:00:09]} Bb4 {[%emt 0:00:21]} 4. e3 {
[%emt 0:00:09]} O-O {[%emt 0:00:17]} 5. Bd3 {[%emt 0:00:16]} d5 {[%emt 0:00:13]
} 6. Nf3 {[%emt 0:00:16]} c5 {[%emt 0:00:45]} 7. cxd5 {[%emt 0:00:35]} exd5 {
[%emt 0:02:36]} 8. dxc5 {[%emt 0:00:17]} Bxc5 {[%emt 0:05:19]} 9. h3 {
[%emt 0:02:33]} Nc6 {[%emt 0:01:35]} 10. O-O {[%emt 0:00:13]} Qe7 {
[%emt 0:17:29]} 11. a3 {[%emt 0:15:54]} a6 {[%emt 0:03:16]} 12. b4 {
[%emt 0:01:43]} Bd6 {[%emt 0:00:29]} 13. Bb2 {[%emt 0:06:07]} Ne5 {
[%emt 0:11:44]} 14. Na4 {[%emt 0:02:51]} Nxd3 {[%emt 0:13:27]} 15. Qxd3 {
[%emt 0:00:12]} Be6 {[%emt 0:03:19]} 16. Nb6 {[%emt 0:09:33]} Rad8 {
[%emt 0:00:43]} 17. Qd4 {[%emt 0:00:45]} Rfe8 {[%emt 0:06:30]} 18. Qh4 {
[%emt 0:17:54]} Nd7 {[%emt 0:11:26]} 19. Qd4 {[%emt 0:01:44]} Nf6 {
[%emt 0:01:01]} 20. Rfc1 {[%emt 0:07:40]} Bb8 {[%emt 0:01:44]} 21. Na4 {
[%emt 0:02:27]} Bf5 {[%emt 0:01:34]} 22. Nc5 {[%emt 0:00:41]} Be4 {
[%emt 0:00:51]} 23. Nd2 {[%emt 0:02:40]} Bg6 {[%emt 0:06:14]} 24. a4 {
[%emt 0:01:51]} Qf8 {[%emt 0:01:22]} 25. Qh4 {[%emt 0:05:11]} Ne4 {
[%emt 0:00:37]} 26. Ndxe4 {[%emt 0:00:29]} dxe4 {[%emt 0:00:41]} 27. Rd1 {
[%emt 0:00:28]} Bc7 {[%emt 0:04:19]} 28. a5 {[%emt 0:03:01]} f6 {[%emt 0:00:01]
} 29. Rxd8 {[%emt 0:02:55]} Rxd8 {[%emt 0:01:31]} 30. Ne6 {[%emt 0:01:54]} Qxb4
{[%emt 0:00:59]} 31. Nxd8 {[%emt 0:03:45]} Qxb2 {[%emt 0:00:01]} 32. Rd1 {
[%emt 0:00:07]} Qc2 {[%emt 0:00:16]} 33. Rf1 {[%emt 0:01:16]} Bxd8 {
[%emt 0:00:05]} 34. Qf4 {[%emt 0:00:04]} Qc7 {[%emt 0:01:15]} 35. Rd1 {
[%emt 0:00:01]} h5 {[%emt 0:00:33]} 36. g4 {[%emt 0:00:21]} h4 {[%emt 0:00:38]}
37. g5 {[%emt 0:01:01]} fxg5 {[%emt 0:00:10]} 38. Qg4 {[%emt 0:00:04]} Kh7 {
[%emt 0:00:19]} 39. Rd7 {[%emt 0:00:17]} Qxa5 {[%emt 0:00:40]} 40. Qd1 {
[%emt 0:00:53]} Bf6 {[%emt 0:00:18]} 41. Rxb7 {[%emt 0:00:31]} Qf5 {
[%emt 0:00:05]} 42. Qd6 {[%emt 0:00:53]} g4 {[%emt 0:01:17]} 43. hxg4 {
[%emt 0:00:23]} Qxg4+ {[%emt 0:00:02]} 44. Kf1 {[%emt 0:00:06]} Qh3+ {
[%emt 0:00:50]} 45. Ke1 {[%emt 0:00:06]} Bc3+ {[%emt 0:00:24]} 46. Kd1 {
[%emt 0:00:01]} Qf3+ {[%emt 0:00:39]} 47. Kc2 {[%emt 0:00:53]} Bf6 {
[%emt 0:00:02]} 48. Qh2 {[%emt 0:00:16]} Qe2+ {[%emt 0:00:36]} 49. Kc1 {
[%emt 0:00:02]} Be8 {[%emt 0:00:27]} 50. Qf4 {[%emt 0:00:08]} Qe1+ {
[%emt 0:00:07]} 0-1

[Event "Charlotte Holiday GM"]
[Site "Charlotte USA"]
[Date "2021.12.20"]
[Round "3.3"]
[White "Panjwani, Raja"]
[Black "Song, Edward"]
[Result "1/2-1/2"]
[ECO "D27"]
[WhiteElo "2431"]
[BlackElo "2365"]
[PlyCount "88"]
[EventDate "2021.12.19"]
[EventType "tourn"]
[EventRounds "9"]
[EventCountry "USA"]
[EventCategory "7"]
[Source "ChessMix"]
[SourceDate "2022.01.01"]
[TimeControl "5400+30"]

1. d4 {[%emt 0:00:04]} d5 {[%emt 0:00:09]} 2. c4 {[%emt 0:00:11]} dxc4 {
[%emt 0:00:05]} 3. Nf3 {[%emt 0:00:12]} Nf6 {[%emt 0:00:05]} 4. e3 {
[%emt 0:00:10]} e6 {[%emt 0:00:07]} 5. Bxc4 {[%emt 0:00:07]} a6 {[%emt 0:00:05]
} 6. a4 {[%emt 0:01:49]} c5 {[%emt 0:00:08]} 7. O-O {[%emt 0:00:09]} Nc6 {
[%emt 0:00:23]} 8. Qe2 {[%emt 0:00:44]} cxd4 {[%emt 0:00:51]} 9. Rd1 {
[%emt 0:00:18]} Be7 {[%emt 0:00:19]} 10. exd4 {[%emt 0:00:12]} O-O {
[%emt 0:00:09]} 11. Nc3 {[%emt 0:00:29]} Nb4 {[%emt 0:00:20]} 12. Ne5 {
[%emt 0:02:19]} b6 {[%emt 0:02:57]} 13. Qf3 {[%emt 0:29:52]} Ra7 {
[%emt 0:00:14]} 14. Qh3 {[%emt 0:05:50]} Rc7 {[%emt 0:19:05]} 15. Bb3 {
[%emt 0:01:27]} Nfd5 {[%emt 0:09:36]} 16. Bd2 {[%emt 0:06:04]} Bg5 {
[%emt 0:38:25]} 17. Qg3 {[%emt 0:00:59]} Bxd2 {[%emt 0:01:45]} 18. Rxd2 {
[%emt 0:00:08]} Bb7 {[%emt 0:14:53]} 19. Rdd1 {[%emt 0:02:32]} Qe7 {
[%emt 0:03:34]} 20. a5 {[%emt 0:03:47]} bxa5 {[%emt 0:03:24]} 21. Ne4 {
[%emt 0:03:38]} Nf6 {[%emt 0:00:59]} 22. Nxf6+ {[%emt 0:03:51]} Qxf6 {
[%emt 0:00:01]} 23. Rxa5 {[%emt 0:02:05]} Rfc8 {[%emt 0:01:22]} 24. h4 {
[%emt 0:04:14]} Bd5 {[%emt 0:00:57]} 25. Bxd5 {[%emt 0:01:19]} Nxd5 {
[%emt 0:00:44]} 26. Ng4 {[%emt 0:07:16]} Qg6 {[%emt 0:00:39]} 27. h5 {
[%emt 0:03:48]} Qg5 {[%emt 0:00:48]} 28. Rc5 {[%emt 0:06:58]} h6 {
[%emt 0:00:42]} 29. b4 {[%emt 0:01:27]} Rxc5 {[%emt 0:00:44]} 30. bxc5 {
[%emt 0:00:52]} a5 {[%emt 0:00:56]} 31. Rb1 {[%emt 0:02:46]} Qf4 {
[%emt 0:01:00]} 32. Rb7 {[%emt 0:03:19]} Qxg3 {[%emt 0:00:25]} 33. fxg3 {
[%emt 0:00:01]} Ra8 {[%emt 0:00:36]} 34. c6 {[%emt 0:00:05]} Rc8 {
[%emt 0:00:30]} 35. Ne5 {[%emt 0:00:20]} Nb4 {[%emt 0:01:03]} 36. c7 {
[%emt 0:04:30]} Na6 {[%emt 0:00:00]} 37. Ra7 {[%emt 0:02:55]} Nxc7 {
[%emt 0:00:08]} 38. Rxa5 {[%emt 0:00:24]} Nd5 {[%emt 0:00:41]} 39. Ra7 {
[%emt 0:00:12]} Rf8 {[%emt 0:00:34]} 40. g4 {[%emt 0:00:17]} Nf6 {
[%emt 0:00:06]} 41. Kf2 {[%emt 0:00:28]} Ne4+ {[%emt 0:00:12]} 42. Kf3 {
[%emt 0:00:16]} Ng5+ {[%emt 0:00:02]} 43. Ke3 {[%emt 0:00:19]} Rb8 {
[%emt 0:00:08]} 44. Rd7 {[%emt 0:00:34]} Ra8 {[%emt 0:00:14]} 1/2-1/2

[Event "Marshall CC-ch"]
[Site "New York USA"]
[Date "2019.11.15"]
[Round "4"]
[White "Niemann, Hans Moke"]
[Black "Panjwani, Raja"]
[Result "1-0"]
[ECO "D20"]
[WhiteElo "2436"]
[BlackElo "2450"]
[PlyCount "101"]
[EventDate "2019.11.14"]
[EventType "tourn"]
[EventRounds "3"]
[EventCountry "USA"]
[Source "ChessMix"]
[SourceDate "2019.11.20"]
[TimeControl "40/5400+30:900+30"]

1. d4 {[%emt 0:00:00]} d5 {[%emt 0:00:05]} 2. c4 {[%emt 0:00:06]} dxc4 {
[%emt 0:00:05]} 3. e4 {[%emt 0:01:04]} Nf6 {[%emt 0:00:06]} 4. e5 {
[%emt 0:00:04]} Nd5 {[%emt 0:00:04]} 5. Bxc4 {[%emt 0:00:05]} Bf5 {
[%emt 0:00:05]} 6. Ne2 {[%emt 0:00:44]} e6 {[%emt 0:00:41]} 7. a3 {
[%emt 0:03:27]} Be7 {[%emt 0:02:32]} 8. Nbc3 {[%emt 0:00:30]} Nb6 {
[%emt 0:00:26]} 9. Ba2 {[%emt 0:00:17]} O-O {[%emt 0:00:35]} 10. O-O {
[%emt 0:00:48]} c5 {[%emt 0:11:59]} 11. Be3 {[%emt 0:12:53]} c4 {[%emt 0:03:02]
} 12. Ng3 {[%emt 0:03:55]} Bg6 {[%emt 0:08:16]} 13. Qg4 {[%emt 0:00:10]} Nc6 {
[%emt 0:02:45]} 14. Rad1 {[%emt 0:00:09]} Kh8 {[%emt 0:07:57]} 15. Nh5 {
[%emt 0:02:03]} Na5 {[%emt 0:07:03]} 16. Nf4 {[%emt 0:02:22]} Bf5 {
[%emt 0:01:56]} 17. Qf3 {[%emt 0:00:07]} Bg5 {[%emt 0:03:31]} 18. d5 {
[%emt 0:07:30]} Bxf4 {[%emt 0:01:01]} 19. Bxf4 {[%emt 0:00:18]} Bd3 {
[%emt 0:04:56]} 20. d6 {[%emt 0:00:03]} f6 {[%emt 0:01:04]} 21. Rxd3 {
[%emt 0:02:44]} fxe5 {[%emt 0:02:19]} 22. Rdd1 {[%emt 0:00:41]} Rxf4 {
[%emt 0:00:50]} 23. Qh3 {[%emt 0:00:04]} Qf6 {[%emt 0:02:54]} 24. g3 {
[%emt 0:03:51]} Rd4 {[%emt 0:03:48]} 25. Bb1 {[%emt 0:00:05]} h6 {
[%emt 0:01:18]} 26. Ne4 {[%emt 0:02:27]} Qf5 {[%emt 0:03:02]} 27. Qxf5 {
[%emt 0:06:34]} exf5 {[%emt 0:00:00]} 28. Nc5 {[%emt 0:00:00]} Rd8 {
[%emt 0:01:26]} 29. Ne6 {[%emt 0:00:04]} R8xd6 {[%emt 0:00:08]} 30. Nxd4 {
[%emt 0:00:00]} exd4 {[%emt 0:00:34]} 31. Bxf5 {[%emt 0:00:01]} Na4 {
[%emt 0:05:09]} 32. Rb1 {[%emt 0:00:07]} d3 {[%emt 0:01:36]} 33. Rfe1 {
[%emt 0:00:15]} g6 {[%emt 0:00:29]} 34. Bg4 {[%emt 0:00:11]} Rb6 {
[%emt 0:10:07]} 35. Re8+ {[%emt 0:05:16]} Kg7 {[%emt 0:00:00]} 36. Rbe1 {
[%emt 0:00:06]} Rf6 {[%emt 0:04:26]} 37. Be6 {[%emt 0:02:46]} d2 {
[%emt 0:08:33]} 38. Rd1 {[%emt 0:00:04]} Nc5 {[%emt 0:02:29]} 39. Bd5 {
[%emt 0:00:45]} Ncb3 {[%emt 0:00:00]} 40. Rg8+ {[%emt 0:01:09]} Kh7 {
[%emt 0:00:00]} 41. Rb8 {[%emt 0:15:04]} Rd6 {[%emt 0:16:46]} 42. Bxc4 {
[%emt 0:00:17]} Nc1 {[%emt 0:00:00]} 43. Bf1 {[%emt 0:00:35]} Rd7 {
[%emt 0:00:00]} 44. Bb5 {[%emt 0:01:29]} Rd5 {[%emt 0:00:00]} 45. b4 {
[%emt 0:00:09]} Nab3 {[%emt 0:00:00]} 46. Rxb7+ {[%emt 0:00:01]} Kh8 {
[%emt 0:00:00]} 47. Bc4 {[%emt 0:00:17]} Re5 {[%emt 0:00:00]} 48. Kf1 {
[%emt 0:00:04]} a6 {[%emt 0:01:22]} 49. Rd7 {[%emt 0:00:40]} Re4 {
[%emt 0:01:00]} 50. Bxb3 {[%emt 0:00:07]} Nxb3 {[%emt 0:00:08]} 51. Rd3 {
[%emt 0:00:06]} 1-0

[Event "Marshall CC-ch"]
[Site "New York USA"]
[Date "2019.11.16"]
[Round "5"]
[White "Panjwani, Raja"]
[Black "Yudasin, Leonid"]
[Result "0-1"]
[ECO "B54"]
[WhiteElo "2450"]
[BlackElo "2507"]
[PlyCount "138"]
[EventDate "2019.11.14"]
[EventType "tourn"]
[EventRounds "3"]
[EventCountry "USA"]
[Source "ChessMix"]
[SourceDate "2019.11.20"]
[TimeControl "40/5400+30:900+30"]

1. Nf3 {[%emt 0:00:00]} c5 {[%emt 0:01:04]} 2. c4 {[%emt 0:00:13]} Nf6 {
[%emt 0:01:39]} 3. Nc3 {[%emt 0:00:19]} e6 {[%emt 0:04:33]} 4. d4 {
[%emt 0:00:37]} cxd4 {[%emt 0:01:49]} 5. Nxd4 {[%emt 0:00:03]} a6 {
[%emt 0:05:03]} 6. e4 {[%emt 0:03:23]} d6 {[%emt 0:00:54]} 7. Be2 {
[%emt 0:00:47]} Be7 {[%emt 0:02:03]} 8. O-O {[%emt 0:00:10]} O-O {
[%emt 0:00:11]} 9. Be3 {[%emt 0:00:38]} Nc6 {[%emt 0:05:33]} 10. Qd2 {
[%emt 0:08:52]} Bd7 {[%emt 0:00:50]} 11. Rfd1 {[%emt 0:01:32]} Rc8 {
[%emt 0:02:21]} 12. Nxc6 {[%emt 0:04:03]} Bxc6 {[%emt 0:01:01]} 13. f3 {
[%emt 0:00:10]} Qc7 {[%emt 0:00:28]} 14. Bd4 {[%emt 0:08:50]} Rfd8 {
[%emt 0:07:36]} 15. a4 {[%emt 0:10:22]} b6 {[%emt 0:03:25]} 16. Qe3 {
[%emt 0:06:20]} Nd7 {[%emt 0:02:58]} 17. Qf2 {[%emt 0:03:44]} a5 {
[%emt 0:03:01]} 18. Qg3 {[%emt 0:04:46]} Bf6 {[%emt 0:04:06]} 19. Bxf6 {
[%emt 0:00:16]} Nxf6 {[%emt 0:00:03]} 20. Rd2 {[%emt 0:00:37]} Ne8 {
[%emt 0:20:00]} 21. Rad1 {[%emt 0:01:03]} Rb8 {[%emt 0:01:06]} 22. Qh4 {
[%emt 0:03:29]} Rd7 {[%emt 0:04:16]} 23. Kf1 {[%emt 0:02:53]} Qd8 {
[%emt 0:00:59]} 24. Qf4 {[%emt 0:01:01]} e5 {[%emt 0:01:17]} 25. Qe3 {
[%emt 0:01:02]} Nc7 {[%emt 0:00:27]} 26. Nb5 {[%emt 0:02:27]} Ne6 {
[%emt 0:09:55]} 27. b3 {[%emt 0:03:25]} Bxb5 {[%emt 0:01:01]} 28. cxb5 {
[%emt 0:00:06]} Nd4 {[%emt 0:01:38]} 29. Rxd4 {[%emt 0:03:41]} exd4 {
[%emt 0:00:13]} 30. Qxd4 {[%emt 0:00:07]} Qc7 {[%emt 0:03:01]} 31. Qd5 {
[%emt 0:04:06]} Rc8 {[%emt 0:05:45]} 32. f4 {[%emt 0:02:19]} Rdd8 {
[%emt 0:01:01]} 33. Bg4 {[%emt 0:00:39]} Rb8 {[%emt 0:00:04]} 34. Qc6 {
[%emt 0:03:39]} Qe7 {[%emt 0:00:14]} 35. Qd5 {[%emt 0:02:08]} Qh4 {
[%emt 0:03:55]} 36. h3 {[%emt 0:01:48]} Qg3 {[%emt 0:00:20]} 37. Kg1 {
[%emt 0:01:54]} Qxf4 {[%emt 0:00:47]} 38. Rf1 {[%emt 0:00:05]} Qe3+ {
[%emt 0:00:51]} 39. Kh2 {[%emt 0:01:14]} Rf8 {[%emt 0:00:04]} 40. Qxd6 {
[%emt 0:02:20]} Qxe4 {[%emt 0:00:31]} 41. Bf5 {[%emt 0:25:09]} Qe8 {
[%emt 0:17:19]} 42. Bd7 {[%emt 0:01:27]} Qd8 {[%emt 0:01:16]} 43. Qc6 {
[%emt 0:01:34]} Qe7 {[%emt 0:00:59]} 44. Rf5 {[%emt 0:02:25]} Qe3 {
[%emt 0:00:00]} 45. Qc4 {[%emt 0:01:06]} Rb7 {[%emt 0:00:00]} 46. Qc6 {
[%emt 0:00:39]} Ra7 {[%emt 0:00:30]} 47. Qd5 {[%emt 0:00:00]} Rc7 {
[%emt 0:01:33]} 48. Bc6 {[%emt 0:00:00]} Re7 {[%emt 0:00:06]} 49. Qd6 {
[%emt 0:00:00]} g6 {[%emt 0:00:31]} 50. Rd5 {[%emt 0:00:00]} Re4 {
[%emt 0:00:46]} 51. Rd3 {[%emt 0:00:00]} Qf4+ {[%emt 0:00:10]} 52. Qxf4 {
[%emt 0:00:00]} Rxf4 {[%emt 0:00:01]} 53. Rd7 {[%emt 0:00:00]} Rb8 {
[%emt 0:00:13]} 54. Bd5 {[%emt 0:00:00]} h5 {[%emt 0:00:35]} 55. Kg3 {
[%emt 0:00:00]} Rf6 {[%emt 0:00:29]} 56. h4 {[%emt 0:00:00]} Re8 {
[%emt 0:00:33]} 57. Rb7 {[%emt 0:00:00]} Kg7 {[%emt 0:00:34]} 58. Bc6 {
[%emt 0:00:00]} Re3+ {[%emt 0:00:02]} 59. Kh2 {[%emt 0:00:00]} Rxb3 {
[%emt 0:00:06]} 60. Rxb6 {[%emt 0:00:00]} Rb4 {[%emt 0:00:04]} 61. Ra6 {
[%emt 0:00:23]} Rxh4+ {[%emt 0:00:13]} 62. Kg3 {[%emt 0:00:51]} Rxa4 {
[%emt 0:00:07]} 63. Bf3 {[%emt 0:00:27]} Ra3 {[%emt 0:00:41]} 64. Kh2 {
[%emt 0:00:10]} a4 {[%emt 0:01:07]} 65. Bd5 {[%emt 0:00:36]} Ra1 {
[%emt 0:00:33]} 66. Be4 {[%emt 0:00:51]} Rf4 {[%emt 0:00:52]} 67. Bc6 {
[%emt 0:00:40]} Rb1 {[%emt 0:00:29]} 68. b6 {[%emt 0:00:05]} Rf6 {
[%emt 0:00:21]} 69. b7 {[%emt 0:00:04]} Rxc6 {[%emt 0:00:05]} 0-1